bitfinex/quotes_SOLUSD_20250611
["timestamp","ask_amount","ask_price","bid_price","bid_amount"]
[1749627355994,36.18370887,166.2,166.19,2.01203359]
[1749627356181,36.18370887,166.2,166.16,18.64964886]
[1749627356387,36.18370887,166.2,166.17,2.01225818]
[1749627356689,36.18370887,166.2,166.18,2.01225818]
[1749627356894,26.0,166.19,166.17,10.18370887]
[1749627357078,26.0,166.19,166.18,2.01160786]
[1749627357285,26.0,166.19,166.18,2.01160798]
[1749627357499,26.0,166.19,166.17,10.18370887]
[1749627357681,26.0,166.2,166.18,2.0117825]
[1749627357883,26.0,166.19,166.17,10.18370887]
[1749627358084,26.0,166.19,166.18,2.01177016]
[1749627358505,26.0,166.19,166.17,10.18370887]
[1749627358929,26.0,166.19,166.18,2.0117729]
[1749627359086,26.0,166.19,166.17,10.18370887]
[1749627359809,26.0,166.2,166.17,10.18370887]
[1749627359983,26.0,166.19,166.17,10.18370887]
[1749627360184,26.0,166.19,166.16,28.83335773]
[1749627360603,26.0,166.18,166.16,28.83335773]
[1749627360809,26.0,166.19,166.15,18.64964886]
[1749627360810,10.18370887,166.19,166.15,18.64964886]
[1749627361024,36.18370887,166.2,166.15,28.83335773]
[1749627362024,40.44370887,166.23,166.17,28.83335773]
[1749627362186,26.0,166.22,166.18,10.18370887]
[1749627362385,36.18370887,166.22,166.17,28.83335773]
[1749627362589,10.18370887,166.21,166.17,18.64964886]
[1749627365416,10.18370887,166.21,166.16,10.18370887]
[1749627365600,36.18370887,166.2,166.16,18.64964886]
[1749627365801,26.0,166.2,166.16,28.83335773]
[1749627365998,10.18370887,166.22,166.18,18.64964886]
[1749627366303,5.48,166.23,166.18,18.64964886]
[1749627366304,41.66370887,166.23,166.18,10.18370887]
[1749627366606,41.66370887,166.23,166.15,18.64964886]
[1749627366607,31.48,166.23,166.19,10.18370887]
[1749627366812,41.66370887,166.23,166.18,10.18370887]
[1749627367797,41.66370887,166.23,166.17,10.18370887]
[1749627367996,36.18370887,166.2,166.14,15.76441818]
[1749627368189,10.18370887,166.19,166.15,18.64964886]
[1749627368798,10.18370887,166.18,166.14,18.64964886]
[1749627371294,36.5651,166.23,166.12,28.83335773]
[1749627371295,1.5548,166.2,166.12,28.83335773]
[1749627371612,1.5548,166.2,166.16,18.64964886]
[1749627371613,10.18370887,166.2,166.16,18.64964886]
[1749627371816,36.18370887,166.2,166.16,18.64964886]
[1749627372197,10.18370887,166.2,166.16,18.64964886]
[1749627372519,10.18370887,166.19,166.15,18.64964886]
[1749627374016,10.18370887,166.19,166.12,18.64964886]
[1749627374217,10.18370887,166.19,166.15,18.64964886]
[1749627374424,10.18370887,166.17,166.13,18.64964886]
[1749627374797,10.18370887,166.17,166.14,2.01498622]
[1749627375013,10.18370887,166.17,166.15,2.01498622]
[1749627375316,10.18370887,166.17,166.16,2.01498622]
[1749627375516,10.18370887,166.18,166.13,28.83335773]
[1749627375717,10.18370887,166.18,166.14,2.01385124]
[1749627375924,31.4,166.2,166.15,2.01364007]
[1749627376093,41.58370887,166.2,166.16,2.01364007]
[1749627376293,26.0,166.19,166.13,18.64964886]
[1749627376497,26.0,166.19,166.15,18.64964886]
[1749627376933,26.0,166.19,166.16,2.01336966]
[1749627377125,26.0,166.19,166.17,2.01336966]
[1749627377304,26.0,166.19,166.15,18.64964886]
[1749627377520,26.0,166.19,166.16,2.01387577]
[1749627377729,36.18370887,166.19,166.17,2.01387577]
[1749627377931,36.18370887,166.19,166.15,18.64964886]
[1749627378148,36.18370887,166.19,166.16,2.01429402]
[1749627378323,36.18370887,166.19,166.17,2.01429402]
[1749627378521,36.18370887,166.19,166.15,18.64964886]
[1749627378720,36.18370887,166.19,166.16,2.01445016]
[1749627379048,36.18370887,166.19,166.17,2.01445016]
[1749627379343,36.18370887,166.19,166.15,18.64964886]
[1749627379521,36.18370887,166.19,166.16,2.0145702]
[1749627379716,26.0,166.19,166.17,2.01451974]
[1749627379939,15.58370887,166.2,166.15,28.83335773]
[1749627380142,15.58370887,166.2,166.16,2.01413925]
[1749627380440,15.58370887,166.2,166.15,28.83335773]
[1749627380441,26.0,166.19,166.17,2.01413925]
[1749627380748,26.0,166.19,166.18,2.01413925]
[1749627381050,26.0,166.19,166.16,2.01413925]
[1749627381240,26.0,166.19,166.15,28.83335773]
[1749627381550,26.0,166.19,166.16,2.01605004]
[1749627381847,26.0,166.19,166.17,2.01613433]
[1749627382043,26.0,166.19,166.18,2.01613433]
[1749627382245,5.4,166.2,166.18,2.01614688]
[1749627382455,5.4,166.2,166.19,2.01559919]
[1749627382631,5.4,166.2,166.19,2.01558244]
[1749627382818,5.4,166.2,166.18,10.18370887]
[1749627383942,5.4,166.2,166.19,2.01560452]
[1749627384518,5.4,166.2,166.18,10.18370887]
[1749627386222,5.4,166.2,166.17,28.83335773]
[1749627386747,5.4,166.2,166.18,10.18370887]
[1749627386930,5.4,166.2,166.17,18.64964886]
[1749627387133,5.4,166.2,166.18,10.18370887]
[1749627388738,5.4,166.2,166.17,10.18370887]
[1749627389330,10.18370887,166.19,166.16,18.64964886]
[1749627389529,5.4,166.2,166.16,10.18370887]
[1749627389840,5.4,166.2,166.13,24.23035817]
[1749627390027,15.58370887,166.2,166.15,10.18370887]
[1749627390225,10.18370887,166.19,166.14,10.18370887]
[1749627390445,10.18370887,166.18,166.13,10.18370887]
[1749627390640,10.18370887,166.18,166.13,18.64964886]
[1749627391454,10.18370887,166.17,166.12,28.83335773]
[1749627392853,10.18370887,166.13,166.11,90.0]
[1749627393025,26.0,166.13,166.11,90.0]
[1749627393547,10.18370887,166.12,166.11,90.0]
[1749627393752,26.0,166.13,166.11,90.0]
[1749627393918,10.18370887,166.13,166.11,90.0]
[1749627394119,26.0,166.16,166.11,90.0]
[1749627394334,26.0,166.16,166.14,18.64964886]
[1749627394335,5.4,166.16,166.14,18.64964886]
[1749627394545,4.94979585,166.16,166.14,10.18370887]
[1749627395047,4.94979585,166.16,166.15,28.83335773]
[1749627395231,4.94979585,166.16,166.15,18.64964886]
[1749627396052,4.94979585,166.16,166.15,20.66078538]
[1749627396347,4.94979585,166.16,166.15,20.66078704]
[1749627396645,4.94979585,166.16,166.15,20.66083319]
[1749627396856,4.94979585,166.16,166.15,18.64964886]
[1749627397219,4.94979585,166.16,166.12,11.79460887]
[1749627397437,15.13350472,166.16,166.13,2.012296]
[1749627397641,10.18370887,166.15,166.14,2.01231824]
[1749627397839,10.18370887,166.15,166.11,90.0]
[1749627398558,10.18370887,166.15,166.12,2.01273665]
[1749627398860,10.18370887,166.15,166.11,90.0]
[1749627399053,10.18370887,166.15,166.12,2.01279009]
[1749627399248,10.18370887,166.15,166.11,90.0]
[1749627399445,10.18370887,166.15,166.12,2.01278933]
[1749627399669,10.18370887,166.15,166.11,90.0]
[1749627399970,10.18370887,166.15,166.12,2.01277965]
[1749627400148,10.18370887,166.15,166.11,90.0]
[1749627402255,10.18370887,166.14,166.11,90.0]
[1749627405038,15.13350472,166.16,166.12,18.64964886]
[1749627405363,10.18370887,166.15,166.12,18.64964886]
[1749627405854,10.18370887,166.14,166.12,18.64964886]
[1749627406029,10.18370887,166.14,166.11,90.0]
[1749627406030,10.18370887,166.13,166.11,90.0]
[1749627406230,10.18370887,166.12,166.11,90.0]
[1749627406475,36.18370887,166.12,166.11,90.0]
[1749627409354,26.0,166.1,166.0,27.5894]
[1749627409554,10.18370887,166.05,166.01,18.64964886]
[1749627410073,10.18370887,166.06,166.01,28.83335773]
[1749627410548,10.18370887,166.06,166.03,18.64964886]
[1749627410749,10.18370887,166.06,166.04,2.0226984]
[1749627410972,26.0,166.1,166.05,2.02269763]
[1749627411173,10.18370887,166.06,166.01,28.83335773]
[1749627411346,10.18370887,166.06,166.03,18.64964886]
[1749627411747,10.18370887,166.06,166.02,18.64964886]
[1749627412046,26.0,166.1,166.02,18.64964886]
[1749627412254,26.0,166.1,166.03,2.02310595]
[1749627412442,10.18370887,166.07,166.04,2.02340315]
[1749627412655,10.18370887,166.07,166.05,2.02341899]
[1749627412842,10.18370887,166.07,166.06,2.02341798]
[1749627413045,10.18370887,166.07,166.06,2.02341697]
[1749627413460,10.18370887,166.07,166.06,2.02341774]
[1749627413654,26.0,166.1,166.02,34.85665439]
[1749627413871,10.18370887,166.07,166.03,2.02340712]
[1749627414055,10.18370887,166.07,166.02,34.85665439]
[1749627414567,10.18370887,166.08,166.03,12.20703424]
[1749627414768,10.18370887,166.08,166.05,18.64964886]
[1749627415069,10.18370887,166.08,166.06,2.02241162]
[1749627415244,10.18370887,166.08,166.04,18.64964886]
[1749627415450,10.18370887,166.08,166.05,2.01855565]
[1749627415650,10.18370887,166.08,166.04,18.64964886]
[1749627415847,4.68161829,166.15,166.06,18.64964886]
[1749627415848,10.18370887,166.09,166.06,18.64964886]
[1749627418071,10.18370887,166.1,166.06,18.64964886]
[1749627419256,10.18370887,166.11,166.07,2.02029219]
[1749627419473,10.18370887,166.1,166.05,28.83335773]
[1749627419769,10.18370887,166.1,166.06,2.02029319]
[1749627419970,26.0,166.13,166.07,2.02029219]
[1749627420177,26.0,166.13,166.07,18.64964886]
[1749627420385,10.18370887,166.12,166.07,28.83335773]
[1749627420551,10.18370887,166.12,166.08,2.01780301]
[1749627420752,36.18370887,166.13,166.09,18.64964886]
[1749627422059,10.18370887,166.14,166.09,28.83335773]
[1749627422286,26.0,166.15,166.1,20.66294178]
[1749627422469,36.18370887,166.15,166.1,18.64964886]
[1749627422970,36.18370887,166.15,166.11,2.014849]
[1749627423164,36.18370887,166.15,166.1,28.83335773]
[1749627423367,36.18370887,166.15,166.11,2.01473271]
[1749627423676,36.18370887,166.15,166.1,28.83335773]
[1749627423882,36.18370887,166.15,166.11,2.0147331]
[1749627424080,36.18370887,166.15,166.1,28.83335773]
[1749627424377,36.18370887,166.15,166.11,2.01473288]
[1749627424578,36.18370887,166.15,166.1,28.83335773]
[1749627424781,36.18370887,166.15,166.11,2.01473171]
[1749627424984,36.18370887,166.15,166.1,28.83335773]
[1749627425172,36.18370887,166.15,166.11,2.01473171]
[1749627425371,4.94979585,166.16,166.13,18.64964886]
[1749627425573,152.8596,166.21,166.15,30.48935773]
[1749627425574,10.18370887,166.2,166.15,30.48935773]
[1749627425779,5.4,166.21,166.17,10.18370887]
[1749627425956,5.4,166.21,166.19,18.64964886]
[1749627426356,5.4,166.21,166.19,28.83335773]
[1749627426788,5.4,166.21,166.2,28.83335773]
[1749627427590,146.7,166.36,166.22,6.01612321]
[1749627427762,15.58370887,166.32,166.28,18.64964886]
[1749627428163,15.58370887,166.32,166.23,18.64964886]
[1749627428365,26.0,166.29,166.28,18.64964886]
[1749627429279,15.58370887,166.32,166.28,18.64964886]
[1749627429485,31.4,166.32,166.28,10.18370887]
[1749627430057,34.47263375,166.32,166.28,10.18370887]
[1749627430791,34.47263375,166.32,166.29,10.18370887]
[1749627431163,34.47263375,166.32,166.28,10.18370887]
[1749627432888,34.47263375,166.32,166.29,10.18370887]
[1749627433077,5.4,166.32,166.31,28.83335773]
[1749627433282,1.5312,166.42,166.32,18.64964886]
[1749627433460,10.18370887,166.39,166.34,18.64964886]
[1749627433659,36.18370887,166.38,166.34,18.64964886]
[1749627434002,10.18370887,166.38,166.34,18.64964886]
[1749627434165,36.18370887,166.38,166.34,18.64964886]
[1749627434371,39.26247324,166.38,166.34,18.64964886]
[1749627434569,39.26247324,166.38,166.28,6.4939]
[1749627434570,10.18370887,166.36,166.28,6.4939]
[1749627434775,10.18370887,166.36,166.3,10.18370887]
[1749627435376,10.18370887,166.35,166.3,10.18370887]
[1749627435873,10.18370887,166.36,166.32,18.64964886]
[1749627436197,29.07876437,166.38,166.29,18.64964886]
[1749627436198,10.18370887,166.33,166.29,18.64964886]
[1749627436509,10.18370887,166.3,166.24,10.18370887]
[1749627436796,15.56370887,166.31,166.27,18.64964886]
[1749627437370,10.18370887,166.3,166.25,10.18370887]
[1749627438594,5.38,166.31,166.27,18.64964886]
[1749627438777,15.56370887,166.31,166.27,18.64964886]
[1749627439182,22.339268,166.31,166.23,18.64964886]
[1749627439415,16.959268,166.3,166.25,16.959268]
[1749627439590,16.959268,166.3,166.25,18.64964886]
[1749627439788,16.959268,166.29,166.25,18.64964886]
[1749627439996,16.959268,166.28,166.23,35.60891686]
[1749627441910,26.0,166.28,166.23,35.60891686]
[1749627442091,42.959268,166.28,166.23,35.60891686]
[1749627444610,26.0,166.3,166.27,18.64964886]
[1749627445014,42.959268,166.3,166.27,18.64964886]
[1749627445930,42.959268,166.3,166.23,18.64964886]
[1749627446227,42.959268,166.3,166.26,18.64964886]
[1749627450140,26.0,166.3,166.26,18.64964886]
[1749627450426,26.0,166.3,166.26,16.959268]
[1749627451839,5.38,166.31,166.28,16.959268]
[1749627452842,22.339268,166.31,166.23,18.64964886]
[1749627453035,22.339268,166.31,166.27,18.64964886]
[1749627455344,5.38,166.31,166.27,16.959268]
[1749627457419,5.38,166.31,166.29,18.64964886]
[1749627457846,5.38,166.31,166.28,18.64964886]
[1749627458956,5.38,166.31,166.23,18.64964886]
[1749627459147,22.339268,166.31,166.27,18.64964886]
[1749627459450,22.339268,166.31,166.26,18.64964886]
[1749627459826,22.339268,166.31,166.26,35.60891686]
[1749627460564,5.38,166.31,166.27,16.959268]
[1749627461444,5.38,166.31,166.27,10.17404111]
[1749627462431,5.38,166.31,166.26,10.17404111]
[1749627462432,15.55404111,166.31,166.26,10.17404111]
[1749627463853,15.55404111,166.31,166.23,18.64964886]
[1749627464035,15.55404111,166.31,166.26,10.17404111]
[1749627465142,5.38,166.31,166.27,10.17404111]
[1749627465447,5.38,166.31,166.23,24.66537083]
[1749627465448,5.38,166.31,166.29,10.17404111]
[1749627466164,5.38,166.31,166.29,18.64964886]
[1749627468951,15.55404111,166.31,166.24,26.0]
[1749627469158,10.17404111,166.3,166.25,28.82368997]
[1749627469460,15.55404111,166.31,166.27,18.64964886]
[1749627470359,5.38,166.31,166.27,10.17404111]
[1749627470555,5.38,166.31,166.25,18.64964886]
[1749627470753,5.38,166.31,166.27,10.17404111]
[1749627472665,5.38,166.31,166.29,18.64964886]
[1749627472974,36.17404111,166.32,166.27,10.17404111]
[1749627474078,36.17404111,166.32,166.25,18.64964886]
[1749627474247,36.17404111,166.32,166.27,10.17404111]
[1749627474653,26.0,166.32,166.27,10.17404111]
[1749627474856,36.17404111,166.32,166.27,10.17404111]
[1749627477381,26.0,166.32,166.27,10.17404111]
[1749627477554,36.17404111,166.32,166.25,18.64964886]
[1749627477879,36.17404111,166.32,166.27,10.17404111]
[1749627478067,26.0,166.32,166.27,10.17404111]
[1749627478272,36.17404111,166.32,166.27,10.17404111]
[1749627479567,36.17404111,166.32,166.28,18.64964886]
[1749627479975,5.38,166.35,166.29,10.17404111]
[1749627480155,5.38,166.35,166.25,18.64964886]
[1749627480156,10.17404111,166.37,166.32,28.82368997]
[1749627480355,155.15876437,166.38,166.32,28.82368997]
[1749627480356,18.63280548,166.38,166.34,18.64964886]
[1749627480765,18.63280548,166.38,166.29,18.64964886]
[1749627481092,18.63280548,166.38,166.34,18.64964886]
[1749627481262,8.45876437,166.38,166.34,18.64964886]
[1749627481784,149.75873667,166.42,166.38,18.64964886]
[1749627482085,2.9731545,166.47,166.41,10.17404111]
[1749627482274,26.0,166.47,166.45,18.64964886]
[1749627482467,10.17404111,166.46,166.38,18.64964886]
[1749627482790,10.17404111,166.44,166.4,18.64964886]
[1749627483691,3.06894647,166.47,166.4,10.17404111]
[1749627483992,10.17404111,166.45,166.4,10.17404111]
[1749627484198,26.0,166.46,166.4,10.17404111]
[1749627484393,10.17404111,166.46,166.41,10.17404111]
[1749627484594,13.15993435,166.48,166.43,10.17404111]
[1749627484785,10.17404111,166.49,166.45,18.64964886]
[1749627486302,10.17404111,166.47,166.43,18.64964886]
[1749627487179,37.5901,166.5,166.43,18.64964886]
[1749627487380,10.17404111,166.47,166.43,18.64964886]
[1749627487580,10.17404111,166.48,166.43,18.64964886]
[1749627489484,10.17404111,166.49,166.45,18.64964886]
[1749627490203,10.17404111,166.48,166.44,18.64964886]
[1749627491199,34.3171638,166.5,166.44,18.64964886]
[1749627491399,10.17404111,166.48,166.44,18.64964886]
[1749627492579,34.3171638,166.5,166.44,18.64964886]
[1749627492802,10.17404111,166.48,166.44,18.64964886]
[1749627495491,10.17404111,166.47,166.44,18.64964886]
[1749627495827,34.3171638,166.5,166.4,28.82368997]
[1749627495828,10.17404111,166.45,166.4,28.82368997]
[1749627497915,10.17404111,166.46,166.41,10.17404111]
[1749627498910,26.0,166.47,166.41,10.17404111]
[1749627499107,26.0,166.49,166.4,18.64964886]
[1749627499108,10.17404111,166.46,166.4,18.64964886]
[1749627499427,10.17404111,166.46,166.41,10.17404111]
[1749627500324,10.17404111,166.47,166.42,28.82368997]
[1749627500519,10.17404111,166.47,166.42,10.17404111]
[1749627500718,26.0,166.49,166.44,18.64964886]
[1749627500719,10.17404111,166.48,166.44,18.64964886]
[1749627500919,36.17404111,166.49,166.44,28.82368997]
[1749627501303,10.17404111,166.48,166.44,28.82368997]
[1749627501522,10.17404111,166.47,166.44,18.64964886]
[1749627501822,10.17404111,166.47,166.42,10.17404111]
[1749627502210,10.17404111,166.48,166.43,10.17404111]
[1749627502523,10.17404111,166.48,166.44,18.64964886]
[1749627502909,5.38,166.5,166.44,10.17404111]
[1749627503110,5.38,166.5,166.46,28.82368997]
[1749627503612,7.93,166.66,166.49,54.82368997]
[1749627503804,10.17404111,166.59,166.54,28.82368997]
[1749627505712,13.16540094,166.64,166.55,10.17404111]
[1749627505909,10.17404111,166.61,166.57,18.64964886]
[1749627506426,10.17404111,166.58,166.52,18.64964886]
[1749627506633,10.17404111,166.58,166.49,10.17404111]
[1749627506634,26.0,166.58,166.49,10.17404111]
[1749627506824,10.17404111,166.53,166.5,18.64964886]
[1749627507029,10.17404111,166.52,166.48,18.64964886]
[1749627508833,10.17404111,166.5,166.46,18.64964886]
[1749627509607,10.17404111,166.47,166.45,18.64964886]
[1749627509901,10.17404111,166.47,166.44,18.64964886]
[1749627510106,10.17404111,166.48,166.44,18.64964886]
[1749627510614,10.17404111,166.47,166.44,18.64964886]
[1749627511524,5.38,166.55,166.44,18.64964886]
[1749627511525,26.0,166.52,166.44,18.64964886]
[1749627511725,10.17404111,166.47,166.44,18.64964886]
[1749627511920,10.17404111,166.47,166.39,33.66589041]
[1749627512231,10.17404111,166.47,166.42,18.64964886]
[1749627512813,10.17404111,166.46,166.42,18.64964886]
[1749627513406,10.17404111,166.46,166.4,18.64964886]
[1749627513606,10.17404111,166.45,166.4,28.82368997]
[1749627514609,10.17404111,166.45,166.4,18.64964886]
[1749627515027,10.17404111,166.45,166.4,28.82368997]
[1749627515420,10.17404111,166.46,166.42,18.64964886]
[1749627515617,26.0,166.51,166.42,28.82368997]
[1749627515818,26.0,166.51,166.44,18.64964886]
[1749627516021,26.0,166.51,166.4,6.00960847]
[1749627516022,10.17404111,166.5,166.46,18.64964886]
[1749627516320,10.17404111,166.49,166.46,18.64964886]
[1749627516715,10.17404111,166.49,166.45,18.64964886]
[1749627517116,26.0,166.51,166.43,6.00849547]
[1749627517117,10.17404111,166.48,166.44,18.64964886]
[1749627518108,10.17404111,166.49,166.44,10.17404111]
[1749627519020,10.17404111,166.48,166.43,10.17404111]
[1749627519632,10.17404111,166.47,166.42,28.82368997]
[1749627519842,26.0,166.51,166.43,10.17404111]
[1749627520142,5.38,166.55,166.51,18.64964886]
[1749627520330,15.55404111,166.55,166.51,18.64964886]
[1749627520546,10.17404111,166.54,166.49,28.82368997]
[1749627520746,10.17404111,166.53,166.49,18.64964886]
[1749627521633,10.17404111,166.53,166.48,18.64964886]
[1749627521844,10.17404111,166.53,166.48,28.82368997]
[1749627522225,10.17404111,166.52,166.48,18.64964886]
[1749627522427,10.17404111,166.53,166.48,28.82368997]
[1749627522621,10.17404111,166.54,166.49,10.17404111]
[1749627523224,5.38,166.55,166.48,28.82368997]
[1749627523225,10.17404111,166.53,166.48,28.82368997]
[1749627523631,10.17404111,166.54,166.49,10.17404111]
[1749627524032,10.17404111,166.53,166.48,28.82368997]
[1749627524346,10.17404111,166.52,166.48,18.64964886]
[1749627525438,5.38,166.55,166.48,18.64964886]
[1749627525439,10.17404111,166.53,166.48,28.82368997]
[1749627526960,26.0,166.53,166.48,28.82368997]
[1749627527665,26.0,166.53,166.49,10.17404111]
[1749627527857,15.55404111,166.55,166.51,18.64964886]
[1749627528451,5.38,166.55,166.51,28.82368997]
[1749627532163,5.38,166.55,166.53,18.64964886]
[1749627532534,5.38,166.55,166.53,10.17404111]
[1749627533234,5.38,166.55,166.54,28.82368997]
[1749627536040,5.38,166.55,166.54,18.64964886]
[1749627540065,5.38,166.55,166.54,28.82368997]
[1749627540360,4.76846458,166.66,166.54,28.82368997]
[1749627540361,10.17404111,166.68,166.59,18.64964886]
[1749627540533,10.17404111,166.68,166.64,18.64964886]
[1749627540735,10.17404111,166.66,166.61,18.64964886]
[1749627541147,10.17404111,166.66,166.61,10.17404111]
[1749627541353,10.17404111,166.67,166.63,18.64964886]
[1749627541744,10.17404111,166.66,166.61,10.17404111]
[1749627542643,10.17404111,166.63,166.6,18.64964886]
[1749627542965,10.17404111,166.64,166.6,18.64964886]
[1749627543469,28.95681285,166.7,166.58,24.7]
[1749627543470,10.17404111,166.66,166.62,18.64964886]
[1749627543645,10.17404111,166.67,166.62,10.17404111]
[1749627545068,10.17404111,166.69,166.64,28.82368997]
[1749627545284,5.38,166.73,166.66,10.17404111]
[1749627545464,10.17404111,166.72,166.68,18.64964886]
[1749627545851,10.17404111,166.71,166.68,18.64964886]
[1749627546382,10.17404111,166.71,166.66,10.17404111]
[1749627546950,146.7,166.78,166.68,28.82368997]
[1749627547180,10.17404111,166.74,166.7,18.64964886]
[1749627547474,10.17404111,166.73,166.7,18.64964886]
[1749627547850,10.17404111,166.73,166.68,10.17404111]
[1749627548578,10.17404111,166.72,166.67,18.64964886]
[1749627548777,10.17404111,166.72,166.67,28.82368997]
[1749627549149,10.17404111,166.72,166.67,18.64964886]
[1749627549372,10.17404111,166.68,166.65,18.64964886]
[1749627549678,10.17404111,166.68,166.63,28.82368997]
[1749627550173,26.0,166.71,166.63,28.82368997]
[1749627550380,10.17404111,166.68,166.63,28.82368997]
[1749627550553,10.17404111,166.67,166.63,18.64964886]
[1749627551584,10.17404111,166.66,166.63,18.64964886]
[1749627551761,26.0,166.71,166.62,18.64964886]
[1749627551967,10.17404111,166.67,166.62,28.82368997]
[1749627552170,10.17404111,166.67,166.6,18.64964886]
[1749627552371,26.0,166.71,166.62,10.17404111]
[1749627552568,10.17404111,166.69,166.65,18.64964886]
[1749627552886,36.17404111,166.71,166.67,18.64964886]
[1749627553182,7.6576,166.74,166.67,18.64964886]
[1749627553183,10.17404111,166.7,166.67,18.64964886]
[1749627553361,10.17404111,166.7,166.65,10.17404111]
[1749627553763,10.17404111,166.7,166.64,28.82368997]
[1749627553960,7.6576,166.74,166.67,18.64964886]
[1749627553961,10.17404111,166.71,166.67,18.64964886]
[1749627554194,10.17404111,166.72,166.67,28.82368997]
[1749627555472,10.17404111,166.72,166.67,10.17404111]
[1749627555777,26.0,166.75,166.67,18.64964886]
[1749627555778,10.17404111,166.71,166.67,18.64964886]
[1749627556995,10.17404111,166.68,166.64,18.64964886]
[1749627557293,10.17404111,166.65,166.58,10.17404111]
[1749627557497,10.17404111,166.63,166.58,10.17404111]
[1749627557663,10.17404111,166.63,166.59,18.64964886]
[1749627559182,10.17404111,166.62,166.58,18.64964886]
[1749627559959,26.0,166.67,166.58,28.82368997]
[1749627559960,10.17404111,166.63,166.58,28.82368997]
[1749627560159,10.17404111,166.64,166.59,10.17404111]
[1749627560588,10.17404111,166.63,166.58,28.82368997]
[1749627561472,10.17404111,166.63,166.58,18.64964886]
[1749627562497,10.17404111,166.62,166.58,18.64964886]
[1749627563970,10.17404111,166.6,166.53,1.6028]
[1749627564177,10.17404111,166.58,166.55,18.64964886]
[1749627564376,10.17404111,166.58,166.54,18.64964886]
[1749627564774,10.17404111,166.59,166.54,28.82368997]
[1749627565496,10.17404111,166.57,166.54,18.64964886]
[1749627565666,10.17404111,166.56,166.54,18.64964886]
[1749627565870,26.0,166.62,166.51,18.64964886]
[1749627565871,10.17404111,166.55,166.51,18.64964886]
[1749627566492,5.36,166.6,166.51,18.64964886]
[1749627566795,10.17404111,166.55,166.51,18.64964886]
[1749627570697,10.17404111,166.54,166.5,18.64964886]
[1749627571698,10.17404111,166.58,166.53,10.17404111]
[1749627571907,10.17404111,166.59,166.55,18.64964886]
[1749627572400,15.53404111,166.6,166.55,10.17404111]
[1749627572576,10.17404111,166.59,166.55,18.64964886]
[1749627572782,15.53404111,166.6,166.55,18.64964886]
[1749627573591,5.36,166.6,166.55,34.82786696]
[1749627573797,5.36,166.6,166.57,18.64964886]
[1749627573978,5.36,166.6,166.57,28.82368997]
[1749627574183,5.36,166.6,166.57,18.64964886]
[1749627577304,5.36,166.6,166.57,24.65309277]
[1749627577611,5.36,166.6,166.59,10.17404111]
[1749627578180,5.36,166.6,166.58,28.82368997]
[1749627579011,5.36,166.6,166.58,34.82680388]
[1749627579184,5.36,166.6,166.59,10.17404111]
[1749627579497,5.36,166.6,166.58,10.17404111]
[1749627580809,5.36,166.6,166.59,10.17404111]
[1749627581105,5.36,166.6,166.59,16.17680238]
[1749627581307,5.36,166.6,166.59,10.17404111]
[1749627584307,10.17404111,166.65,166.59,16.17680238]
[1749627584496,10.17404111,166.65,166.61,18.64964886]
[1749627585006,32.5274,166.68,166.61,18.64964886]
[1749627585204,10.17404111,166.65,166.61,18.64964886]
[1749627589214,10.17404111,166.64,166.59,28.82368997]
[1749627589410,10.17404111,166.65,166.61,18.64964886]
[1749627589711,10.17404111,166.66,166.61,18.64964886]
[1749627589906,5.38,166.69,166.63,28.82368997]
[1749627590109,5.38,166.69,166.65,28.82368997]
[1749627590298,5.38,166.69,166.67,28.82368997]
[1749627591327,5.38,166.69,166.68,28.82368997]
[1749627592193,5.38,166.69,166.68,18.64964886]
[1749627592591,6.0609,166.77,166.69,18.64964886]
[1749627592909,26.0,166.74,166.71,10.17404111]
[1749627593101,26.0,166.74,166.69,18.64964886]
[1749627593303,26.0,166.74,166.71,10.17404111]
[1749627593506,10.17404111,166.76,166.71,10.17404111]
[1749627593712,7.86773009,166.79,166.73,28.82368997]
[1749627594010,7.86773009,166.79,166.7,18.64964886]
[1749627594421,10.17404111,166.76,166.72,18.64964886]
[1749627596117,26.0,166.78,166.72,18.64964886]
[1749627596416,26.0,166.78,166.71,10.17404111]
[1749627596417,10.17404111,166.75,166.7,28.82368997]
[1749627596616,10.17404111,166.74,166.7,18.64964886]
[1749627596835,10.17404111,166.73,166.68,18.64964886]
[1749627597130,10.17404111,166.74,166.7,18.64964886]
[1749627597912,10.17404111,166.75,166.71,18.64964886]
[1749627598113,36.17404111,166.76,166.71,28.82368997]
[1749627598733,26.0,166.76,166.71,18.64964886]
[1749627599032,10.17404111,166.77,166.73,18.64964886]
[1749627599261,10.17404111,166.78,166.73,28.82368997]